fUSD/lending_fUSD_20240616
["ID","MTS","AMOUNT","RATE_DAILY","PERIOD"]
[329602354,1718496399434,-296.11184514,0.00013896,2]
[329602355,1718496399463,-434.63266488,0.00013897,2]
[329602356,1718496399507,-150.0,0.00013897,2]
[329602357,1718496399544,-522.98728476,0.00013898,2]
[329602358,1718496399608,-155.14202692,0.00013898,2]
[329602359,1718496399644,-215.62373681,0.00013898,2]
[329602360,1718496399706,-300.49916166,0.00013898,2]
[329602361,1718496399764,-387.65102514,0.00013898,2]
[329602362,1718496406216,151.0,0.000273,60]
[329602363,1718496431547,151.0,0.000273,60]
[329602366,1718496446224,-886.77301192,0.00013897,2]
[329602367,1718496446253,-105.65342051,0.00013898,2]
[329602368,1718496446290,-244.73712879,0.00013898,2]
[329602369,1718496446349,-300.0,0.00013898,2]
[329602370,1718496446404,-3392.53982032,0.00013899,2]
[329602391,1718496639560,-291.74569539,0.00013898,2]
[329602392,1718496639574,-21964.66760125,0.00013899,2]
[329602393,1718496639590,-701.89106013,0.00013899,2]
[329602398,1718496645739,-9456.27177094,0.00013899,2]
[329602399,1718496645751,-998.27822906,0.000139,2]
[329602400,1718496645844,-1258.93178513,0.000139,2]
[329602401,1718496645879,-1001.00661564,0.000139,2]
[329602402,1718496645921,-586.80049511,0.000139,2]
[329602403,1718496645979,-409.45999997,0.000139,2]
[329602404,1718496646004,-500.09,0.000139,2]
[329602405,1718496646047,-6212.55820317,0.000139,2]
[329602406,1718496646068,-775.77409809,0.000139,2]
[329602415,1718496646767,-7849.97467302,0.000139,2]
[329602416,1718496646791,-3107.12544579,0.000139,2]
[329602417,1718496646828,-1022.04087,0.000139,2]
[329602418,1718496646893,-27910.03248502,0.000139,2]
[329602419,1718496646924,-300.0,0.000139,5]
[329602420,1718496646948,-195.75966111,0.000139,2]
[329602421,1718496646960,-317.2839632,0.000139,2]
[329602423,1718496646996,-10017.0348,0.000139,2]
[329602426,1718496647104,-500.0,0.00013999,2]
[329602428,1718496647159,-12633.83380447,0.00014,2]
[329602439,1718496647614,-1851.12984424,0.00014,2]
[329602441,1718496647924,-8006.82744837,0.00014,2]
[329602442,1718496647946,-748.12442162,0.00014,2]
[329602443,1718496647961,-892.99999995,0.00014,2]
[329602444,1718496648000,-662.29,0.00014,2]
[329602445,1718496649036,-6687.536406,0.00014,2]
[329602448,1718496649468,-501.35,0.00014,2]
[329602460,1718496650498,-31917.53181174,0.00014,2]
[329602481,1718496651029,-270.462826,0.00014,2]
[329602483,1718496651045,-1748.9835148,0.00014,2]
[329602486,1718496651062,-875.2951492,0.00014,2]
[329602491,1718496651186,-5018.53305676,0.00014,2]
[329602495,1718496651237,-649.36276981,0.00014,2]
[329602497,1718496651306,-436.34499996,0.00014,2]
[329602501,1718496651330,-361.98469787,0.00014,2]
[329602504,1718496651348,-2085.163727,0.00014,2]
[329602507,1718496651392,-536.98354144,0.00014,2]
[329602510,1718496651410,-4608.4,0.00014,2]
[329602528,1718497835633,-388.88750137,0.000139,2]
[329602529,1718497835651,-78.66599863,0.000139,2]
[329602530,1718497835692,-317.28396317,0.000139,2]
[329602531,1718497835702,-114.3500487,0.00013998,2]
[329602532,1718497835730,-334.66910851,0.00013998,2]
[329602533,1718497835767,-300.0,0.00013998,2]
[329602534,1718497835838,-91.81693623,0.00013999,2]
[329602535,1718497835852,-1000.0,0.00013999,2]
[329602536,1718497835933,-1500.0,0.00013999,2]
[329602546,1718497841709,-10652.52794303,0.00013999,2]
[329602547,1718497841723,-206.88944248,0.00014,2]
[329602548,1718497841768,-284.51111494,0.00014,2]
[329602549,1718497841801,-22230.81641486,0.00014,2]
[329602550,1718497841819,-4572.78453988,0.00014,2]
[329602551,1718497841856,-53637.49453123,0.00014,2]
[329602552,1718497841873,-10391.0,0.00014,2]
[329602571,1718497842713,-750.51681515,0.00014,2]
[329602572,1718497842794,-795.2682055,0.00014,2]
[329602573,1718497843326,-1007.38297438,0.00014,2]
[329602574,1718497843402,-10816.66281497,0.00014,2]
[329602575,1718497843448,-1575.69909023,0.00014,2]
[329602576,1718497843463,-965.1429323,0.00014,2]
[329602578,1718497843985,-633.84,0.00014,2]
[329602591,1718497847676,-63130.29169134,0.00014,2]
[329602592,1718497847712,-681.33262632,0.00014,2]
[329602600,1718497848889,-500.0,0.00014,2]
[329602601,1718497848920,-24067.32736272,0.00014,2]
[329602602,1718497849076,-62541.20649587,0.00014,2]
[329602603,1718497849935,-6954.03353777,0.00014,2]
[329602604,1718497850235,-4349.01500908,0.00014,2]
[329602605,1718497850249,-2601.45388436,0.00014,2]
[329602606,1718497850531,-607.97134023,0.00014,2]
[329602607,1718497850554,-3577.8,0.00014,2]
[329602608,1718497850569,-442.00189353,0.00014,2]
[329602609,1718497850586,-3365.20411288,0.00014,2]
[329602610,1718497850601,-762.58582215,0.00014,2]
[329602611,1718497850627,-3642.85020046,0.00014,2]
[329602613,1718497851680,-1980.94079067,0.00014,2]
[329602614,1718497851693,-127662.25213586,0.00014,2]
[329602615,1718497852402,-984.3372864,0.00014,2]
[329602616,1718497852417,-1294.16585839,0.00014,2]
[329602617,1718497852476,-852.18109769,0.00014,2]
[329602618,1718497852551,-4155.09641126,0.00014,2]
[329602619,1718497852615,-468.67992952,0.00014,2]
[329602620,1718497852641,-1058.52056441,0.00014,2]
[329602621,1718497852654,-310.0765343,0.00014,2]
[329602622,1718497883927,453.33042599,0.00012458,2]
[329602632,1718498262545,373.6980411,0.000251,30]
[329602635,1718498800218,-213.03984259,0.00010958,2]
[329602636,1718498954239,-672.94387223,0.00010958,2]
[329602637,1718498954287,-318.76,0.00010959,2]
[329602638,1718498954339,-3012.53055483,0.000118,2]
[329602639,1718498954392,-596.3,0.00012108,2]
[329602640,1718498954448,-2624.290886,0.00012333,2]
[329602641,1718498954496,-1364.1706901,0.00012458,2]
[329602642,1718498954543,-20465.4176274,0.00012458,2]
[329602643,1718498961117,-2026.2614,0.00012458,2]
[329602644,1718498967230,-1198.96833491,0.00012458,2]
[329602655,1718499034130,-28928.35788627,0.00012458,2]
[329602656,1718499034149,-5172.97373894,0.00012458,2]
[329602657,1718499034810,-2425.0209562,0.00012458,2]
[329602658,1718499039400,-3275.23508451,0.00012458,2]
[329602659,1718499039416,-5403.48247186,0.00012458,2]
[329602660,1718499039440,-766.0,0.00012458,2]
[329602661,1718499039470,-413.89116843,0.00012458,2]
[329602662,1718499040254,-106451.57871435,0.00012458,2]
[329602663,1718499040277,-150.0,0.0001326,2]
[329602664,1718499040310,-958.2785447,0.000133,2]
[329602665,1718499040344,-250.0,0.00013429,2]
[329602666,1718499040387,-626.52827106,0.00013438,2]
[329602667,1718499040416,-1000.0,0.00013614,2]
[329602668,1718499040450,-712.91,0.00013699,2]
[329602669,1718499040462,-358.3,0.00013729,2]
[329602670,1718499040483,-1101.71,0.00013781,2]
[329602671,1718499040496,-3000.0,0.0001386,2]
[329602672,1718499040520,-250.0,0.0001388,2]
[329602673,1718499040535,-382.72650143,0.00013881,2]
[329602674,1718499040553,-13865.7704,0.000139,2]
[329602675,1718499040565,-4199.4757,0.000139,2]
[329602676,1718499040601,-1000.0,0.000139,2]
[329602677,1718499040630,-1381.02044182,0.000139,2]
[329602679,1718499040660,-1207.39,0.00013964,2]
[329602680,1718499040675,-155.0,0.00013998,2]
[329602683,1718499040705,-777.2630943,0.00013998,2]
[329602685,1718499040718,-217.4798775,0.00013998,2]
[329602686,1718499040732,-407.68898763,0.00013998,2]
[329602687,1718499040747,-201.88106921,0.00013998,2]
[329602688,1718499040769,-264.04833367,0.00013998,2]
[329602689,1718499040792,-3868.21225512,0.00013999,2]
[329602690,1718499040817,-2365.35274775,0.00013999,2]
[329602691,1718499040845,-2480.95176185,0.00014,2]
[329602692,1718499040893,-9029.50703311,0.00014,2]
[329602693,1718499040923,-7734.82972179,0.00014,2]
[329602694,1718499041109,-16958.54404651,0.00014,2]
[329602695,1718499041140,-1001.63044653,0.00014,2]
[329602696,1718499041169,-1427.85452135,0.00014,2]
[329602698,1718499041187,-376.17167403,0.00014,2]
[329602700,1718499041229,-10312.64728852,0.00014,2]
[329602703,1718499041270,-558.65143543,0.00014,2]
[329602743,1718499044722,-110937.11372679,0.00014,2]
[329602744,1718499044744,-199.88690742,0.00014,2]
[329602745,1718499044776,-155.9550727,0.00014,2]
[329602746,1718499044793,-69025.44014451,0.00014,2]
[329602747,1718499044897,-1822.31939735,0.00014,2]
[329602748,1718499044974,-1404.90517718,0.00014,2]
[329602749,1718499044996,-13888.79313183,0.00014,2]
[329602750,1718499045011,-5210.46617815,0.00014,2]
[329602751,1718499045636,-83439.73338449,0.00014,2]
[329602752,1718499045647,-1362.21,0.00014307,2]
[329602753,1718499045677,-596.3,0.00014372,2]
[329602754,1718499045700,-2516.74,0.00014561,2]
[329602755,1718499045732,-150.0,0.00014892,2]
[329602756,1718499045743,-150.467,0.00014892,2]
[329602757,1718499045762,-150.844,0.00014892,2]
[329602758,1718499045774,-168.692,0.00014892,2]
[329602759,1718499045800,-247.815,0.00014892,2]
[329602760,1718499045848,-358.0,0.00014892,2]
[329602761,1718499045860,-1270.0,0.00014892,2]
[329602762,1718499045872,-1830.0,0.00014892,2]
[329602763,1718499045893,-654.386,0.00014892,2]
[329602764,1718499045910,-442.0,0.00014892,2]
[329602765,1718499045928,-1304.0,0.00014892,2]
[329602766,1718499045949,-437.0,0.00014892,2]
[329602767,1718499045964,-3176.0,0.00014892,2]
[329602768,1718499045981,-1067.0,0.00014892,2]
[329602769,1718499046012,-150.527,0.00014892,2]
[329602770,1718499046034,-165.619,0.00014892,2]
[329602771,1718499046050,-150.0,0.00014892,2]
[329602772,1718499046078,-252.946,0.00014892,2]
[329602773,1718499046126,-7500.0,0.000149,2]
[329602774,1718499046141,-219.73,0.00014904,2]
[329602775,1718499046172,-23900.0,0.00014942,2]
[329602776,1718499046193,-168.34,0.00014979,2]
[329602777,1718499046206,-3960.81286143,0.00015,2]
[329602778,1718499046236,-621.77168446,0.00015,2]
[329602779,1718499046256,-200.0,0.00015,2]
[329602780,1718499046267,-84276.49699801,0.00015,2]
[329602781,1718499046533,-20068.66447452,0.00015,2]
[329602782,1718499046547,-802.0,0.00015,2]
[329602783,1718499046561,-3974.0,0.00015,2]
[329602784,1718499046589,-151.0,0.00015,2]
[329602785,1718499046613,-182.525008,0.00015,2]
[329602786,1718499046627,-151.59284,0.00015,2]
[329602787,1718499046639,-151.0,0.00015,2]
[329602788,1718499046658,-581.923247,0.00015,2]
[329602789,1718499046670,-581.923247,0.00015,2]
[329602790,1718499046682,-151.0,0.00015,2]
[329602791,1718499046693,-152.77,0.00015068,2]
[329602792,1718499046727,-1000.0,0.00015315,2]
[329602793,1718499046738,-187.28,0.00015363,2]
[329602794,1718499046750,-172.39,0.00015368,2]
[329602795,1718499046764,-1381.0204418,0.00015443,2]
[329602796,1718499046776,-201.93,0.00015831,2]
[329602797,1718499046788,-167.0,0.00015831,2]
[329602798,1718499046802,-167.0,0.00016354,2]
[329602799,1718499046824,-3000.0,0.0001636,2]
[329602800,1718499046839,-596.3,0.00016636,2]
[329602801,1718499046868,-167.0,0.00016876,2]
[329602803,1718499046886,-1381.0204418,0.00016985,2]
[329602805,1718499046916,-1000.0,0.00017017,2]
[329602809,1718499046972,-1362.21,0.00017047,2]
[329602810,1718499046985,-167.0,0.00017399,2]
[329602812,1718499047013,-423.12,0.00017462,2]
[329602814,1718499047046,-2100.0,0.00017462,2]
[329602816,1718499047062,-215.64274998,0.00017502,2]
[329602817,1718499047075,-500.0,0.00017602,2]
[329602818,1718499047102,-500.0,0.00017602,2]
[329602819,1718499047113,-500.0,0.00017602,2]
[329602820,1718499047125,-500.0,0.00017602,2]
[329602821,1718499047144,-500.0,0.00017602,2]
[329602822,1718499047188,-500.0,0.00017602,2]
[329602823,1718499047200,-500.0,0.00017602,2]
[329602824,1718499047212,-500.0,0.00017602,2]
[329602825,1718499047238,-500.0,0.00017602,2]
[329602826,1718499047274,-500.0,0.00017602,2]
[329602827,1718499047286,-500.0,0.00017602,2]
[329602828,1718499047303,-500.0,0.00017602,2]
[329602829,1718499047332,-500.0,0.00017602,2]
[329602830,1718499047343,-500.0,0.00017602,2]
[329602831,1718499047354,-500.0,0.00017602,2]
[329602832,1718499047365,-500.0,0.00017602,2]
[329602833,1718499047390,-500.0,0.00017602,2]
[329602834,1718499047411,-500.0,0.00017602,2]
[329602835,1718499047432,-362.6875499,0.00017602,2]
[329602836,1718499048451,-137.3124501,0.00017602,2]
[329602837,1718499048483,-500.0,0.00017602,2]
[329602838,1718499048535,-302.75502286,0.00017602,2]
[329602839,1718499048929,-197.24497714,0.00017602,2]
[329602840,1718499048982,-500.0,0.00017602,2]
[329602841,1718499049001,-150.0,0.00017892,2]
[329602842,1718499049014,-1270.0,0.00017892,2]
[329602843,1718499049050,-442.0,0.00017892,2]
[329602844,1718499049077,-221.974,0.00017892,2]
[329602845,1718499049089,-1067.0,0.00017892,2]
[329602846,1718499049101,-150.0,0.00017892,2]
[329602847,1718499049140,-167.0,0.00017921,2]
[329602848,1718499049171,-201.93,0.00018444,2]
[329602849,1718499049188,-167.0,0.00018444,2]
[329602850,1718499049200,-1381.0204418,0.00018528,2]
[329602851,1718499049232,-193.0,0.0001864,2]
[329602852,1718499049261,-236.51340319,0.00018719,2]
[329602854,1718499054486,-150.641,0.00014892,2]
[329602856,1718499054508,-763.48659681,0.00018719,2]
[329602858,1718499054545,-168.34,0.00018724,2]
[329602860,1718499054556,-3000.0,0.0001886,2]
[329602863,1718499054582,-596.3,0.000189,2]
[329602865,1718499054622,-200.0,0.000189,6]
[329602868,1718499054639,-80.319991,0.000189,2]
[329602870,1718499054653,-919.680009,0.000189,2]
[329602872,1718499054706,-169.470082,0.00018955,2]
[329602874,1718499054733,-181.256457,0.00018955,2]
[329602877,1718499054778,-478.15971815,0.00018955,2]
[329602879,1718499054801,-1120.0285415,0.00018955,2]
[329602881,1718499054815,-822.35949435,0.00018955,2]
[329602883,1718499054840,-182.908713,0.00018955,2]
[329602885,1718499054858,-412.24153306,0.00019,2]
[329602886,1718499054873,-500.0,0.00019178,2]
[329602888,1718499054904,-500.0,0.00019178,2]
[329602890,1718499054923,-500.0,0.00019178,2]
[329602892,1718499054969,-500.0,0.00019178,2]
[329602894,1718499054982,-500.0,0.00019178,2]
[329602896,1718499055004,-391.53634957,0.00019178,2]
[329602899,1718499055047,-500.0,0.00019178,2]
[329602901,1718499055059,-500.0,0.00019178,2]
[329602902,1718499055077,-500.0,0.00019178,2]
[329602905,1718499055138,-419.55040736,0.00019178,2]
[329602907,1718499055150,-183.7844533,0.00019178,2]
[329602909,1718499055192,-500.0,0.00019178,2]
[329602910,1718499055206,-246.53804871,0.00019178,2]
[329602911,1718499055253,-500.0,0.00019178,2]
[329602912,1718499055266,-500.0,0.00019178,2]
[329602913,1718499055283,-500.0,0.00019178,2]
[329602914,1718499055295,-358.81680477,0.00019178,2]
[329602915,1718499055324,-477.37444054,0.00019178,2]
[329602916,1718499055356,-500.0,0.00019178,2]
[329602917,1718499055373,-500.0,0.00019178,2]
[329602918,1718499055386,-500.0,0.00019178,2]
[329602919,1718499055444,-712.91,0.00019178,2]
[329602920,1718499055466,-169.470082,0.00019192,2]
[329602921,1718499055524,-2420.547754,0.00019192,2]
[329602922,1718499055549,-9037.09727522,0.00019339,2]
[329602960,1718500233559,-183.03,0.00013804,2]
[329602961,1718500233577,-79.72989247,0.00014607,2]
[329602962,1718500233614,-81.5946663,0.00014607,2]
[329602963,1718500233635,-1103.26068088,0.00014709,2]
[329602964,1718500234155,-443.84211258,0.00014709,2]
[329602965,1718500234168,-55.45769152,0.0001471,2]
[329602966,1718500234187,-882.11160975,0.0001471,2]
[329602967,1718500234203,-150.0,0.00014999,2]
[329602968,1718500234214,-1232.34825355,0.00015,2]
[329602969,1718500234235,-2623.65174645,0.00015,2]
[329602970,1718500234247,-200.0,0.00015,2]
[329602971,1718500234275,-621.77168446,0.00015324,2]
[329602972,1718500234306,-1250.0,0.00015325,2]
[329602973,1718500234341,-593.47227997,0.00015325,2]
[329602974,1718500234366,-656.52772003,0.00015325,2]
[329602975,1718500234402,-209.93644628,0.00015348,2]
[329602976,1718500234588,-432.84355372,0.00015348,2]
[329602977,1718500234636,-304.69032928,0.00015424,2]
[329602978,1718500234649,-155.0,0.00015424,2]
[329602979,1718500234668,-1339.5984477,0.00015425,2]
[329602980,1718500234690,-43.35423316,0.00015426,2]
[329602981,1718500234713,-314.64576684,0.00015426,2]
[329602982,1718500234725,-1270.0,0.00015426,2]
[329602983,1718500234749,-809.0,0.00015426,2]
[329602984,1718500234761,-164.0,0.00015426,2]
[329602985,1718500234791,-616.0,0.00015426,2]
[329602986,1718500234802,-442.0,0.00015426,2]
[329602987,1718500234834,-2540.18,0.00015426,2]
[329602988,1718500234853,-446.0,0.00015426,2]
[329602989,1718500234880,-1303.0,0.00015426,2]
[329602990,1718500234892,-3176.0,0.00015426,2]
[329602991,1718500234905,-1114.04758892,0.00015426,2]
[329602992,1718500234924,-831.66201726,0.00015426,2]
[329602993,1718500234970,-3202.29039382,0.00015426,2]
[329602994,1718500235007,-1194.0,0.00015426,2]
[329602995,1718500235018,-38103.0,0.00015426,2]
[329602996,1718500235031,-5785.0,0.00015426,2]
[329602997,1718500235057,-1573.0,0.00015426,2]
[329602998,1718500235068,-1040.19756488,0.00016198,2]
[329602999,1718500235088,-199.77,0.0001721,2]
[329603000,1718500235101,-250.0,0.0001723,2]
[329603001,1718500235118,-1000.0,0.00017272,2]
[329603002,1718500235134,-17848.38,0.00017275,2]
[329603003,1718500235156,-250.0,0.00017341,2]
[329603004,1718500235172,-1000.0,0.00017348,2]
[329603005,1718500235186,-1327.86,0.0001739,2]
[329603006,1718500235198,-155.0,0.00017403,2]
[329603007,1718500235213,-642.78,0.00017612,2]
[329603008,1718500235261,-1303.29,0.00017739,2]
[329603009,1718500235320,-297.78,0.00017767,2]
[329603010,1718500235367,-168.34,0.00017962,2]
[329603011,1718500235381,-160.13,0.00018021,2]
[329603012,1718500235408,-253.54,0.00018426,2]
[329603013,1718500235423,-442.0,0.00018426,2]
[329603014,1718500235448,-248.289,0.00018426,2]
[329603015,1718500235481,-152.73,0.00018521,2]
[329603016,1718500235496,-152.73,0.00018527,2]
[329603017,1718500235520,-152.73,0.00018533,2]
[329603018,1718500235541,-152.73,0.00018539,2]
[329603019,1718500235552,-152.73,0.00018545,2]
[329603020,1718500235566,-152.73,0.00018551,2]
[329603021,1718500235581,-152.73,0.00018558,2]
[329603022,1718500235598,-152.73,0.00018564,2]
[329603023,1718500235635,-152.73,0.0001857,2]
[329603024,1718500235651,-152.73,0.00018576,2]
[329603025,1718500235665,-152.73,0.00018582,2]
[329603026,1718500235700,-152.73,0.00018588,2]
[329603027,1718500235721,-152.73,0.00018595,2]
[329603028,1718500235748,-152.73,0.00018601,2]
[329603029,1718500235759,-152.73,0.00018607,2]
[329603030,1718500235769,-152.73,0.00018613,2]
[329603031,1718500235788,-180.101689,0.00018955,2]
[329603032,1718500235800,-1241.352445,0.00018955,2]
[329603033,1718500235812,-181.457019,0.00018955,2]
[329603034,1718500235829,-412.24153306,0.00019177,2]
[329603035,1718500235845,-746.41,0.00019178,2]
[329603036,1718500235862,-1241.352445,0.00019192,2]
[329603037,1718500235883,-3604.4591,0.00019239,2]
[329603038,1718500235928,-482.5231,0.00019239,2]
[329603039,1718500235955,-489.0,0.000193,2]
[329603040,1718500235977,-163.8151,0.00019303,2]
[329603041,1718500235994,-4041.6850729,0.00019329,2]
[329603042,1718500236021,-268.98603627,0.00019337,2]
[329603043,1718500236044,-442.75229546,0.00019337,2]
[329603044,1718500236060,-238.07079474,0.00019337,2]
[329603045,1718500236075,-1806.78931483,0.00019337,2]
[329603046,1718500236087,-2004.49651681,0.00019337,2]
[329603047,1718500236098,-159.34884802,0.00019337,2]
[329603048,1718500236114,-1000.0,0.00019338,2]
[329603049,1718500236133,-267.19199716,0.00019338,2]
[329603050,1718500236148,-379.95004526,0.00019338,2]
[329603051,1718500236160,-500.0,0.00019338,2]
[329603052,1718500236177,-567.08841888,0.00019338,2]
[329603053,1718500236190,-500.0,0.00019338,2]
[329603054,1718500236206,-2100.0,0.00019339,2]
[329603055,1718500236218,-1105.84581199,0.00019339,2]
[329603056,1718500236233,-35018.3906703,0.00019339,2]
[329603057,1718500236247,-5775.53904364,0.00019339,2]
[329603058,1718500236292,-1048.15420428,0.00019339,2]
[329603059,1718500236316,-1043.72873983,0.00019339,2]
[329603060,1718500236348,-328.14586284,0.00019339,2]
[329603061,1718500236553,-171.85413716,0.00019339,2]
[329603062,1718500236574,-2316.46771162,0.00019339,2]
[329603063,1718500236593,-2670.35134403,0.00019339,2]
[329603064,1718500236837,-4668.04030603,0.00019339,2]
[329603065,1718500236853,-878.7,0.00019339,2]
[329603066,1718500237093,-578.5596183,0.00019339,2]
[329603077,1718500239923,-1067.0,0.00015426,2]
[329603078,1718500239945,-1067.0,0.00018426,2]
[329603079,1718500239957,-2516.63667989,0.00019339,2]
[329603080,1718500240052,-4384.21500748,0.00019339,2]
[329603081,1718500240071,-4456.98459002,0.00019339,2]
[329603082,1718500240086,-1600.18804615,0.00019339,2]
[329603085,1718500242505,-399.81195385,0.00019339,2]
[329603086,1718500242528,-200.0,0.00019339,2]
[329603087,1718500242542,-415.08287066,0.00019339,2]
[329603088,1718500242572,-1584.91712934,0.00019339,2]
[329603089,1718500242587,-200.0,0.00019339,2]
[329603090,1718500242603,-500.0,0.00019339,2]
[329603091,1718500242622,-46.56772975,0.00019339,2]
[329603092,1718500242637,-453.43227025,0.00019339,2]
[329603093,1718500242648,-500.0,0.00019339,2]
[329603094,1718500242659,-320.82025689,0.00019339,2]
[329603096,1718500243392,-75.85811729,0.00019339,2]
[329603100,1718500245047,-26.2642471,0.00019339,2]
[329603101,1718500245125,-77.05737872,0.00019339,2]
[329603102,1718500245137,-500.0,0.00019339,2]
[329603103,1718500245157,-151.0,0.00019339,2]
[329603104,1718500245175,-500.0,0.00019339,2]
[329603105,1718500245188,-151.0,0.00019339,2]
[329603106,1718500245213,-500.0,0.00019339,2]
[329603107,1718500245238,-151.0,0.00019339,2]
[329603108,1718500245252,-579.0,0.00019339,2]
[329603109,1718500245284,-106.8150605,0.00019339,2]
[329603110,1718500245432,-44.1849395,0.00019339,2]
[329603111,1718500245470,-151.0,0.00019339,2]
[329603112,1718500245498,-151.0,0.00019339,2]
[329603113,1718500245548,-7.95615942,0.00019339,2]
[329603115,1718500247308,-187.04384058,0.00019339,2]
[329603116,1718500247322,-500.0,0.00019339,2]
[329603117,1718500247336,-500.0,0.00019339,2]
[329603118,1718500247353,-173.93404472,0.00019339,2]
[329603119,1718500247565,-326.06595528,0.00019339,2]
[329603120,1718500247581,-500.0,0.00019339,2]
[329603121,1718500247597,-504.0,0.00019339,2]
[329603122,1718500247615,-2000.0,0.00019339,2]
[329603123,1718500247635,-200.0,0.00019339,2]
[329603124,1718500247647,-2160.31983,0.00019339,2]
[329603125,1718500247662,-2000.0,0.00019339,2]
[329603126,1718500247682,-200.0,0.00019339,2]
[329603127,1718500247694,-8663.22,0.00019339,2]
[329603128,1718500247708,-1318.89,0.00019339,2]
[329603129,1718500247735,-4426.3142964,0.00019364,2]
[329603130,1718500247755,-500.0,0.0001939,2]
[329603131,1718500247769,-169.470082,0.00019429,2]
[329603132,1718500248021,-181.256457,0.00019429,2]
[329603133,1718500248081,-2420.547754,0.00019429,2]
[329603134,1718500248108,-180.101689,0.00019429,2]
[329603135,1718500248149,-1241.352445,0.00019429,2]
[329603137,1718500248161,-1000.0,0.00019431,2]
[329603138,1718500248194,-2000.0,0.00019532,2]
[329603140,1718500248213,-200.0,0.00019532,2]
[329603142,1718500248241,-2000.0,0.00019532,2]
[329603144,1718500248257,-200.0,0.00019532,2]
[329603146,1718500248268,-2000.0,0.00019532,2]
[329603148,1718500248281,-200.0,0.00019532,2]
[329603150,1718500248298,-2000.0,0.00019532,2]
[329603152,1718500248310,-200.0,0.00019532,2]
[329603154,1718500248327,-2440.6402,0.00019608,2]
[329603155,1718500248340,-319.4783,0.00019608,2]
[329603158,1718500248373,-169.470082,0.00019666,2]
[329603160,1718500248389,-2420.547754,0.00019666,2]
[329603162,1718500248405,-1241.352445,0.00019666,2]
[329603164,1718500248423,-204.37562916,0.00019708,2]
[329603166,1718500248442,-155.69003604,0.00019708,2]
[329603168,1718500248458,-2000.0,0.00019728,2]
[329603170,1718500248472,-2000.0,0.00019728,2]
[329603172,1718500248506,-200.0,0.00019728,2]
[329603174,1718500248523,-200.0,0.00019728,2]
[329603175,1718500248536,-2000.0,0.00019728,2]
[329603178,1718500248557,-200.0,0.00019728,2]
[329603181,1718500248586,-642.78,0.00019875,2]
[329603182,1718500248598,-309.33,0.0001989,3]
[329603184,1718500248634,-215.0,0.000199,2]
[329603186,1718500248668,-169.470082,0.00019903,2]
[329603188,1718500248680,-181.256457,0.00019903,2]
[329603190,1718500248693,-2420.547754,0.00019903,2]
[329603192,1718500248717,-180.101689,0.00019903,2]
[329603194,1718500248733,-1241.352445,0.00019903,2]
[329603196,1718500248759,-2000.0,0.00019925,2]
[329603199,1718500248809,-2000.0,0.00019925,2]
[329603201,1718500248848,-200.0,0.00019925,2]
[329603204,1718500248874,-200.0,0.00019925,2]
[329603206,1718500248899,-1062.46800721,0.00019925,2]
[329603208,1718500248915,-200.0,0.00019925,2]
[329603211,1718500248960,-317.12810746,0.00019999,2]
[329603213,1718500248978,-6269.45372724,0.0002,2]
[329603215,1718500248995,-1782.31988206,0.0002,2]
[329603216,1718500249020,-555.79453179,0.0002,7]
[329603218,1718500249049,-155.0,0.0002,4]
[329603220,1718500249062,-2095.19456165,0.0002,3]
[329603222,1718500249075,-155.0,0.0002,2]
[329603224,1718500249100,-865.86350875,0.0002,2]
[329603226,1718500249113,-187.74893441,0.0002,2]